bitfinex-derivatives/quotes_BTCF0:USTF0_20241117
["timestamp","ask_amount","ask_price","bid_price","bid_amount"]
[1731803229848,0.00549526,90836.0,90835.0,0.06364958]
[1731803230035,0.00549526,90836.0,90835.0,0.06911138]
[1731803230535,0.00549526,90836.0,90835.0,0.07943228]
[1731803231139,0.00549526,90836.0,90835.0,0.18952139]
[1731803231544,0.00549526,90836.0,90835.0,0.19453943]
[1731803232053,0.00549526,90836.0,90835.0,0.18952139]
[1731803232537,0.00549526,90836.0,90835.0,0.19453313]
[1731803233133,0.00549526,90836.0,90835.0,0.18952139]
[1731803234941,0.01099526,90836.0,90835.0,0.18952139]
[1731803235152,0.01099526,90836.0,90835.0,0.244225]
[1731803235452,0.01099526,90836.0,90835.0,0.24923674]
[1731803235961,0.01099526,90836.0,90835.0,0.244225]
[1731803236339,0.01099526,90836.0,90835.0,0.24971505]
[1731803236554,0.01099526,90836.0,90835.0,0.24425325]
[1731803236853,0.01099526,90836.0,90835.0,0.2442592]
[1731803237349,0.05624643,90844.0,90843.0,0.055009]
[1731803237550,0.10582798,90849.0,90843.0,0.02440818]
[1731803237846,0.05622656,90858.0,90856.0,0.055001]
[1731803238048,0.10582798,90865.0,90857.0,0.01408728]
[1731803238049,0.1315367,90860.0,90857.0,0.01408728]
[1731803238239,0.054997,90864.0,90863.0,0.054997]
[1731803238548,0.054997,90864.0,90863.0,0.01408728]
[1731803238549,0.18654129,90864.0,90863.0,0.01408728]
[1731803238733,0.054997,90864.0,90863.0,0.01408728]
[1731803239143,0.18653915,90864.0,90863.0,0.01408728]
[1731803239345,0.054997,90864.0,90863.0,0.01408728]
[1731803239948,0.186556,90864.0,90863.0,0.01408728]
[1731803240248,0.054997,90864.0,90863.0,0.01408728]
[1731803241153,0.054997,90864.0,90863.0,0.02274819]
[1731803241352,0.054997,90864.0,90863.0,0.01407848]
[1731803242449,0.054997,90864.0,90863.0,0.06907548]
[1731803244260,0.054997,90864.0,90863.0,0.06898032]
[1731803244750,0.16002345,90865.0,90864.0,0.054997]
[1731803244953,0.29162924,90865.0,90864.0,0.06898032]
[1731803245345,0.16002345,90865.0,90864.0,0.06898032]
[1731803245550,0.16002345,90865.0,90864.0,0.07929857]
[1731803245752,0.16002345,90865.0,90864.0,0.06898032]
[1731803245961,0.16002345,90865.0,90864.0,0.0792985]
[1731803246159,0.21501945,90865.0,90864.0,0.0792985]
[1731803246843,0.21501945,90865.0,90864.0,0.4400985]
[1731803247844,0.16002345,90865.0,90864.0,0.4400985]
[1731803248254,0.05419547,90865.0,90864.0,0.4400985]
[1731803248558,0.00165106,90867.0,90866.0,0.054995]
[1731803248760,0.00165106,90867.0,90866.0,0.07391891]
[1731803249064,0.00165106,90867.0,90866.0,0.0792965]
[1731803250658,0.05621417,90867.0,90866.0,0.0792965]
[1731803250866,0.00165106,90867.0,90866.0,0.0792965]
[1731803251264,0.00165106,90867.0,90866.0,0.07947678]
[1731803254265,0.054994,90869.0,90868.0,0.054994]
[1731803254453,0.054994,90869.0,90868.0,0.0691576]
[1731803255662,0.21856529,90870.0,90868.0,0.0691576]
[1731803255965,0.21856529,90870.0,90864.0,0.3608]
[1731803255966,0.0869595,90870.0,90869.0,0.0691566]
[1731803256860,0.0326,90870.0,90869.0,0.07947406]
[1731803258955,0.0326,90870.0,90869.0,0.0691566]
[1731803259363,0.0326,90870.0,90869.0,0.07947356]
[1731803259553,0.19771411,90891.0,90869.0,0.07947356]
[1731803259554,0.13160579,90879.0,90869.0,0.18952148]
[1731803259758,0.1316085,90879.0,90875.0,0.3608]
[1731803259959,0.1316085,90879.0,90876.0,0.02507816]
[1731803260159,0.1316085,90879.0,90877.0,0.0251]
[1731803260361,0.1316085,90879.0,90878.0,0.07135791]
[1731803260574,0.1316085,90879.0,90878.0,0.08554472]
[1731803260762,0.1316085,90880.0,90879.0,0.054987]
[1731803260963,0.1316085,90880.0,90879.0,0.06917319]
[1731803261161,0.1100851,90882.0,90881.0,0.054986]
[1731803261356,0.1100851,90882.0,90881.0,0.06917219]
[1731803261770,0.1100851,90882.0,90881.0,0.054986]
[1731803261972,0.1100851,90882.0,90881.0,0.06040661]
[1731803262162,0.1100851,90882.0,90881.0,0.06908118]
[1731803264763,0.1794457,90882.0,90881.0,0.06908118]
[1731803265371,0.1794457,90882.0,90881.0,0.06898848]
[1731803266871,0.1244597,90882.0,90881.0,0.06898848]
[1731803267069,0.1794457,90882.0,90881.0,0.06898848]
[1731803267577,0.34403083,90882.0,90881.0,0.06898848]
[1731803268077,0.41339143,90882.0,90881.0,0.01400248]
[1731803268279,0.41339143,90882.0,90865.0,0.26011107]
[1731803268280,0.054986,90881.0,90871.0,0.00498316]
[1731803268479,0.054986,90881.0,90868.0,0.054994]
[1731803268480,0.0693606,90872.0,90868.0,0.054994]
[1731803268689,0.054993,90870.0,90869.0,0.0103177]
[1731803268983,0.054993,90870.0,90864.0,0.3608]
[1731803268984,0.054996,90865.0,90864.0,0.3608]
[1731803269368,0.054996,90865.0,90864.0,0.37111813]
[1731803269971,0.054996,90865.0,90864.0,0.3608]
[1731803270177,0.21969018,90865.0,90864.0,0.3608]
[1731803270392,0.10849193,90865.0,90864.0,0.3608]
[1731803270582,0.054996,90865.0,90864.0,0.3608]
[1731803270776,0.055003,90854.0,90853.0,0.0051]
[1731803270970,0.055003,90854.0,90853.0,0.01031869]
[1731803271176,0.139523,90854.0,90853.0,0.01031869]
[1731803271480,0.172323,90854.0,90853.0,0.01031869]
[1731803272181,0.055004,90851.0,90844.0,0.055009]
[1731803272477,0.18675499,90851.0,90845.0,0.055008]
[1731803272784,0.055004,90851.0,90845.0,0.055008]
[1731803272982,0.18675499,90851.0,90845.0,0.055008]
[1731803273176,0.055007,90847.0,90845.0,0.055008]
[1731803273376,0.055007,90846.0,90845.0,0.055008]
[1731803273577,0.055007,90846.0,90845.0,0.06532838]
[1731803273979,0.055007,90846.0,90845.0,0.055008]
[1731803274184,0.18671327,90846.0,90845.0,0.055008]
[1731803275274,0.055007,90846.0,90845.0,0.055008]
[1731803275690,0.111001,90846.0,90845.0,0.055008]
[1731803275888,0.055007,90846.0,90845.0,0.055008]
[1731803276696,0.055007,90846.0,90845.0,0.06532817]
[1731803276986,0.49306628,90850.0,90847.0,0.055006]
[1731803276987,0.18671227,90849.0,90847.0,0.055006]
[1731803277185,0.055006,90849.0,90848.0,0.01032034]
[1731803278288,0.055006,90849.0,90848.0,0.07384922]
[1731803278483,0.055006,90849.0,90848.0,0.01884322]
[1731803279383,0.055006,90849.0,90848.0,0.01032034]
[1731803279582,0.055006,90849.0,90848.0,0.01884362]
[1731803280385,0.055006,90849.0,90848.0,0.02414587]
[1731803280589,0.055006,90849.0,90848.0,0.01382553]
[1731803280793,0.055006,90849.0,90848.0,0.00530225]
[1731803280982,0.385246,90849.0,90848.0,0.00530225]
[1731803281185,0.055012,90838.0,90837.0,0.0051]
[1731803281386,0.52155019,90838.0,90837.0,0.0052307]
[1731803281689,0.46653819,90838.0,90837.0,0.00522873]
[1731803281892,0.055013,90836.0,90835.0,4.43e-05]
[1731803282302,0.055013,90836.0,90835.0,0.00529423]
[1731803282982,0.415813,90836.0,90835.0,0.00528111]
[1731803283380,0.5473762,90836.0,90835.0,0.00528111]
[1731803283684,0.415813,90836.0,90835.0,4.43e-05]
[1731803284486,0.47000379,90836.0,90835.0,3.04e-06]
[1731803287695,0.60122905,90836.0,90835.0,3.04e-06]
[1731803288493,0.47000379,90836.0,90835.0,3.04e-06]
[1731803289791,0.055019,90827.0,90826.0,0.0051]
[1731803289991,0.055023,90821.0,90817.0,0.0051]
[1731803290308,0.055023,90821.0,90810.0,0.088229]
[1731803291182,0.0608,90826.0,90810.0,0.088229]
[1731803291381,0.10573819,90815.0,90811.0,0.00508384]
[1731803291591,0.10573819,90815.0,90812.0,0.00508384]
[1731803291892,0.055027,90814.0,90810.0,0.088229]
[1731803292093,0.055027,90814.0,90813.0,0.00516462]
[1731803292299,0.055027,90814.0,90811.0,0.00516462]
[1731803292684,0.055027,90814.0,90813.0,0.00516462]
[1731803293095,0.055028,90813.0,90810.0,0.0332]
[1731803293304,0.055029,90812.0,90811.0,0.00513341]
[1731803293803,0.16199507,90815.0,90802.0,0.0332]
[1731803293804,0.055033,90803.0,90802.0,0.0332]
[1731803294096,0.52157119,90803.0,90802.0,0.03833312]
[1731803294887,0.52157119,90803.0,90802.0,0.00513312]
[1731803295795,0.3608,90803.0,90802.0,0.00513312]
[1731803296193,0.3608,90803.0,90802.0,0.0133771]
[1731803297698,0.05461282,90808.0,90803.0,0.055033]
[1731803297997,0.3608,90813.0,90806.0,0.055031]
[1731803298233,0.3608,90813.0,90807.0,0.02370175]
[1731803298234,0.05503,90809.0,90807.0,0.02370175]
[1731803298505,0.05503,90809.0,90808.0,0.02370175]
[1731803299304,0.41514849,90813.0,90809.0,0.05503]
[1731803299610,0.47017649,90813.0,90811.0,0.055029]
[1731803299798,0.47017649,90813.0,90812.0,0.0133771]
[1731803302203,0.47017649,90813.0,90812.0,0.01373207]
[1731803303312,0.6013565,90813.0,90812.0,0.01373207]
[1731803303501,0.47017649,90813.0,90812.0,0.01373207]
[1731803305418,0.47017649,90813.0,90812.0,0.00517694]
[1731803305594,0.47017649,90813.0,90812.0,0.0134616]
[1731803308193,0.52551169,90813.0,90812.0,0.0134616]
[1731803308504,0.3608,90813.0,90812.0,0.0237859]
[1731803308703,0.055024,90818.0,90816.0,0.055026]
[1731803308704,0.16471169,90818.0,90816.0,0.055026]
[1731803309011,0.055023,90820.0,90818.0,0.055024]
[1731803309304,0.10573819,90819.0,90816.0,0.00490311]
[1731803309514,0.10854692,90818.0,90817.0,0.0083244]
[1731803309717,0.10854692,90818.0,90817.0,0.02388186]
[1731803309891,0.055032,90806.0,90800.0,0.055035]
[1731803310096,0.055032,90806.0,90797.0,0.055037]
[1731803310097,0.055036,90800.0,90797.0,0.055037]
[1731803310297,0.06986696,90798.0,90797.0,0.055037]
[1731803310501,0.06986696,90798.0,90797.0,0.06536235]
[1731803310701,0.21979656,90805.0,90800.0,0.055035]
[1731803311001,0.055033,90804.0,90801.0,0.01032535]
[1731803311202,0.055033,90804.0,90802.0,0.01032535]
[1731803311392,0.055033,90804.0,90803.0,0.01032535]
[1731803311805,0.21979756,90804.0,90803.0,0.01032535]
[1731803312003,0.16476456,90804.0,90803.0,0.01032535]
[1731803312307,0.10573819,90806.0,90804.0,0.055033]
[1731803312308,0.16476456,90805.0,90804.0,0.055033]
[1731803312505,0.05352976,90805.0,90804.0,0.06535835]
[1731803312708,0.10573819,90806.0,90804.0,0.06535835]
[1731803312908,0.27058935,90806.0,90805.0,0.01032535]
[1731803313115,0.10573819,90806.0,90805.0,0.01032535]
[1731803313299,0.21988216,90807.0,90805.0,0.01032535]
[1731803313300,0.05466167,90808.0,90806.0,0.055032]
[1731803313611,0.16485116,90808.0,90807.0,0.01032535]
[1731803313802,0.055028,90812.0,90808.0,0.05503]
[1731803314003,0.10855614,90811.0,90809.0,0.06535535]
[1731803314201,0.05352714,90810.0,90809.0,0.05503]
[1731803314403,0.05352533,90810.0,90809.0,0.06535425]
[1731803315699,0.16491177,90810.0,90809.0,0.01523663]
[1731803315900,0.16491177,90811.0,90809.0,0.06535425]
[1731803316101,0.16491177,90811.0,90810.0,0.01032425]
[1731803316598,0.16491177,90811.0,90810.0,0.06535325]
[1731803316795,0.055026,90816.0,90810.0,0.06535325]
[1731803316796,0.16491177,90812.0,90810.0,0.06535325]
[1731803317008,0.25180065,90816.0,90811.0,0.06535325]
[1731803317310,0.055024,90819.0,90814.0,0.055027]
[1731803317311,0.05352267,90815.0,90814.0,0.055027]
[1731803317515,0.05352267,90815.0,90814.0,0.01032379]
[1731803317516,0.05352342,90815.0,90814.0,0.01032379]
[1731803317714,0.05352342,90815.0,90814.0,0.06535079]
[1731803318210,0.19793011,90817.0,90814.0,0.06535079]
[1731803318417,0.19793011,90817.0,90815.0,0.01032379]
[1731803318603,0.19793011,90817.0,90816.0,0.01032379]
[1731803318805,0.05352342,90817.0,90816.0,0.06534979]
[1731803319017,0.0329,90822.0,90818.0,0.055024]
[1731803319018,0.05617579,90819.0,90818.0,0.055024]
[1731803319207,0.05352082,90819.0,90818.0,0.06534779]
[1731803319408,0.05352082,90821.0,90820.0,0.055023]
[1731803319605,0.05351961,90821.0,90820.0,0.06534679]
[1731803319804,0.16493632,90821.0,90820.0,0.0738755]
[1731803320003,0.22123877,90822.0,90820.0,0.0738755]
[1731803320214,0.22123877,90822.0,90821.0,0.01886476]
[1731803320512,0.16493632,90825.0,90821.0,0.01886476]
[1731803320701,0.16493632,90826.0,90824.0,0.055021]
[1731803320904,0.16493632,90826.0,90825.0,0.00854097]
[1731803321314,0.06169957,90827.0,90825.0,0.02966098]
[1731803321510,0.22823011,90833.0,90825.0,0.02966098]
[1731803321511,0.23037963,90879.0,90826.0,1.09207483]
[1731803321708,0.05376651,90879.0,90878.0,0.054988]
[1731803321920,0.054986,90882.0,90878.0,0.00854097]
[1731803322117,0.054986,90882.0,90879.0,0.01393384]
[1731803322319,0.054986,90882.0,90880.0,9.826e-05]
[1731803322509,0.054986,90882.0,90881.0,0.00856819]
[1731803322907,0.0303,90883.0,90881.0,0.00856819]
[1731803323112,0.0303,90883.0,90882.0,0.01396106]
[1731803323622,7.842e-05,90884.0,90882.0,0.01396106]
[1731803323915,7.842e-05,90884.0,90883.0,0.06894606]
[1731803324712,7.842e-05,90884.0,90883.0,0.054985]
[1731803324911,7.842e-05,90884.0,90883.0,0.06871386]
[1731803325616,7.842e-05,90884.0,90883.0,0.06860514]
[1731803327523,7.842e-05,90884.0,90883.0,0.06845761]
[1731803327720,7.842e-05,90884.0,90883.0,0.06845764]
[1731803328122,7.842e-05,90884.0,90883.0,0.17848861]
[1731803328322,7.842e-05,90884.0,90883.0,0.17025388]
[1731803328926,7.842e-05,90884.0,90883.0,0.17843]
[1731803329314,7.842e-05,90884.0,90883.0,0.17017461]
[1731803333329,7.842e-05,90884.0,90883.0,0.17843483]
[1731803335749,7.842e-05,90884.0,90883.0,0.28417302]
[1731803336026,7.842e-05,90884.0,90883.0,0.6059928]
[1731803336226,7.842e-05,90884.0,90883.0,0.61438434]
[1731803340233,7.842e-05,90884.0,90883.0,0.50864615]
[1731803340431,7.842e-05,90884.0,90883.0,0.61438434]
[1731803341137,7.842e-05,90884.0,90883.0,0.58502697]
[1731803341439,7.842e-05,90884.0,90883.0,0.15331628]
[1731803341622,7.842e-05,90884.0,90883.0,0.06859628]
[1731803343429,7.842e-05,90884.0,90883.0,0.01361128]
[1731803344635,7.842e-05,90884.0,90880.0,9.826e-05]
[1731803344636,0.054986,90881.0,90880.0,9.826e-05]
[1731803344832,0.054986,90881.0,90880.0,0.01888399]
[1731803345027,0.054986,90881.0,90880.0,0.02723409]
[1731803345539,0.054986,90881.0,90880.0,0.01356792]
[1731803345725,0.054986,90881.0,90862.0,0.054998]
[1731803345726,0.054993,90870.0,90862.0,0.054998]
[1731803345924,0.10573819,90875.0,90862.0,0.054998]
[1731803345925,0.054997,90864.0,90862.0,0.054998]
[1731803347435,0.0642,90869.0,90856.0,0.00165104]
[1731803347436,0.0642,90869.0,90867.0,0.054995]
[1731803347936,0.119194,90869.0,90867.0,0.054995]
[1731803349427,0.119194,90869.0,90867.0,0.05982872]
[1731803349635,0.119194,90869.0,90868.0,0.0103175]
[1731803350338,0.119194,90869.0,90868.0,0.01031758]
[1731803350529,0.1748019,90869.0,90868.0,0.01031758]
[1731803351932,0.5356019,90869.0,90868.0,0.00485073]
[1731803352226,0.054995,90867.0,90866.0,0.00485073]
[1731803352428,0.054996,90865.0,90864.0,0.00485073]
[1731803352631,0.054996,90865.0,90863.0,0.00485073]
[1731803352941,0.054996,90865.0,90864.0,0.0103181]
[1731803354435,0.054997,90863.0,90862.0,0.054998]
[1731803354742,0.054997,90863.0,90862.0,0.06531644]
[1731803354941,0.054997,90863.0,90862.0,0.01031844]
[1731803355147,0.16431278,90867.0,90860.0,0.00485023]
[1731803355331,0.16073619,90861.0,90860.0,0.00485023]
[1731803355531,0.055001,90857.0,90856.0,0.00165104]
[1731803355738,0.055001,90857.0,90856.0,0.00987935]
[1731803356127,0.087901,90857.0,90856.0,0.00987935]
[1731803357642,0.087901,90857.0,90856.0,0.01502826]
[1731803358544,0.087901,90857.0,90856.0,0.00165104]
[1731803358743,0.087901,90857.0,90856.0,0.01505494]
[1731803360843,0.14247459,90857.0,90856.0,0.01505494]
[1731803361537,0.05457359,90857.0,90856.0,0.07005594]
[1731803361738,0.055001,90857.0,90856.0,0.07005594]
[1731803364546,0.055001,90857.0,90856.0,0.06992563]
[1731803366550,0.055001,90857.0,90856.0,0.07207605]
[1731803367444,0.055001,90857.0,90856.0,0.06175667]
[1731803367842,0.055001,90857.0,90856.0,0.06163431]
[1731803368755,0.055001,90857.0,90856.0,0.06165358]
[1731803369264,0.055001,90857.0,90856.0,0.07197253]
[1731803372957,0.055001,90857.0,90856.0,0.01697153]
[1731803373153,0.055001,90857.0,90856.0,0.00665258]
[1731803373856,0.21962515,90857.0,90856.0,0.00665258]
[1731803374248,0.10850589,90857.0,90856.0,0.00665258]
[1731803375359,0.10850589,90857.0,90856.0,0.01469563]
[1731803375860,0.10850589,90857.0,90856.0,0.0146803]
[1731803376361,0.10850589,90857.0,90856.0,0.00665258]
[1731803377163,0.46930589,90857.0,90856.0,0.00665258]
[1731803377963,0.46930589,90857.0,90856.0,0.00165104]
[1731803378157,0.46930589,90857.0,90856.0,0.00666451]
[1731803380455,0.46930594,90857.0,90856.0,0.00666451]
[1731803381360,0.46930594,90857.0,90856.0,0.00165104]
[1731803381565,0.46930594,90857.0,90856.0,0.00665734]
[1731803383967,0.46930594,90857.0,90856.0,0.01471736]
[1731803384273,0.415801,90857.0,90856.0,0.00668758]
[1731803384459,0.46930693,90857.0,90856.0,0.01474918]
[1731803387657,0.46930693,90857.0,90856.0,0.01478626]
[1731803391468,0.46930693,90857.0,90856.0,0.01313522]
[1731803392876,0.53871339,90857.0,90856.0,0.01313522]
[1731803394968,0.46930693,90857.0,90856.0,0.01313522]
[1731803395168,0.055001,90856.0,90854.0,0.055003]
[1731803395383,0.2343224,90855.0,90854.0,0.055003]
[1731803395684,0.2343224,90855.0,90854.0,0.06012576]
[1731803395874,0.2343224,90855.0,90854.0,0.06829846]
[1731803396269,0.23433492,90855.0,90854.0,0.06829846]
[1731803396475,0.12440846,90855.0,90854.0,0.06829846]
[1731803396681,0.28933692,90855.0,90854.0,0.06829846]
[1731803397179,0.12440846,90855.0,90854.0,0.06829846]
[1731803397682,0.06940646,90855.0,90854.0,0.07861784]
[1731803398374,0.06940646,90855.0,90854.0,0.07861128]
[1731803398674,0.06940646,90855.0,90854.0,0.0786112]
[1731803399780,0.12440846,90855.0,90854.0,0.0786112]
[1731803400789,0.52628847,90857.0,90856.0,0.055001]
[1731803400985,0.48370627,90857.0,90856.0,0.06828982]
[1731803401486,0.48370627,90857.0,90856.0,0.07860897]
[1731803403184,0.41429981,90857.0,90856.0,0.07860897]
[1731803403576,0.05349981,90857.0,90856.0,0.18867264]
[1731803403776,0.15493155,90858.0,90857.0,0.055001]
[1731803404081,0.13194228,90858.0,90857.0,0.35380797]
[1731803404388,0.13194228,90863.0,90857.0,0.45568352]
[1731803404593,0.13194228,90863.0,90862.0,0.054998]
[1731803404804,0.13194228,90863.0,90862.0,0.06826139]
[1731803405088,0.06940646,90865.0,90864.0,0.054997]
[1731803405389,0.06940646,90865.0,90864.0,0.07335472]
[1731803405580,0.06940646,90865.0,90864.0,0.08367387]
[1731803405984,0.06940646,90865.0,90864.0,0.07857317]
[1731803406577,0.16682833,90865.0,90864.0,0.08201245]
[1731803406790,0.16682961,90865.0,90864.0,0.08201245]
[1731803407188,0.03501363,90865.0,90864.0,0.08201245]
[1731803408483,0.03501363,90865.0,90864.0,0.07857317]
[1731803408683,0.03501363,90865.0,90864.0,0.02357617]
[1731803408684,0.65203207,90865.0,90864.0,0.02357617]
[1731803408885,0.52021609,90865.0,90864.0,0.01325702]
[1731803409201,0.48520246,90865.0,90864.0,0.01325702]
[1731803409790,0.48520246,90865.0,90864.0,0.00509825]
[1731803410989,0.53869979,90865.0,90864.0,0.00509825]
[1731803411194,0.60810625,90865.0,90864.0,0.00509825]
[1731803411407,0.60810625,90865.0,90850.0,0.0051]
[1731803411408,0.55311025,90865.0,90850.0,0.0051]
[1731803411687,0.48521046,90851.0,90850.0,0.0051]
[1731803411888,0.055005,90850.0,90843.0,0.415809]
[1731803412105,0.06940646,90844.0,90843.0,0.415809]
[1731803412288,0.06940646,90844.0,90843.0,0.43411305]
[1731803412888,0.06940646,90844.0,90843.0,0.42612889]
[1731803413087,0.20119073,90844.0,90843.0,0.42612889]
[1731803413688,0.06940646,90844.0,90843.0,0.42612889]
[1731803413996,0.20120109,90844.0,90843.0,0.42612889]
[1731803414586,0.13179463,90844.0,90843.0,0.42612889]
[1731803415499,0.13179463,90844.0,90843.0,0.43413996]
[1731803415798,0.06940646,90844.0,90843.0,0.43413996]
[1731803416788,0.13179463,90846.0,90843.0,0.37913096]
[1731803416990,0.13179463,90846.0,90845.0,0.038768]
[1731803417192,0.13179463,90846.0,90845.0,0.04908789]
[1731803417782,0.36136001,90857.0,90845.0,0.04908789]
[1731803417783,0.3608,90857.0,90855.0,0.055002]
[1731803418086,0.19766582,90861.0,90852.0,0.3608]
[1731803418281,0.05350013,90860.0,90859.0,0.055]
[1731803418484,0.00165123,90863.0,90862.0,0.054998]
[1731803418685,0.1314607,90866.0,90865.0,0.054996]
[1731803418899,0.054993,90870.0,90865.0,0.00798271]
[1731803419093,0.054994,90869.0,90868.0,0.054994]
[1731803419404,0.054994,90869.0,90868.0,0.07329603]
[1731803419901,0.054994,90869.0,90868.0,0.01830203]
[1731803420790,0.3608,90874.0,90873.0,0.054991]
[1731803421091,0.3608,90874.0,90873.0,0.07329095]
[1731803421789,0.032,90888.0,90882.0,0.054986]
[1731803421790,0.054984,90885.0,90882.0,0.054986]
[1731803421990,0.032,90888.0,90882.0,0.054986]
[1731803421991,0.032,90888.0,90883.0,0.01829995]
[1731803422501,0.0301,90893.0,90883.0,0.01829995]
[1731803422705,0.05498,90892.0,90883.0,0.01829995]
[1731803423405,0.0301,90893.0,90883.0,0.02333955]
[1731803423584,0.3608,90895.0,90884.0,6.461e-05]
[1731803423905,0.36136001,90895.0,90892.0,0.054979]
[1731803424098,0.3608,90895.0,90892.0,0.054979]
[1731803424294,0.3608,90895.0,90893.0,0.01657812]
[1731803424602,0.3608,90895.0,90893.0,0.01657811]
[1731803425096,0.3608,90895.0,90893.0,0.02689268]
[1731803425503,0.3608,90895.0,90893.0,0.01657811]
[1731803425693,0.3608,90895.0,90893.0,0.02689268]
[1731803426588,0.3608,90895.0,90893.0,0.01375277]
[1731803426791,0.3608,90895.0,90893.0,0.02687825]
[1731803426990,0.3608,90895.0,90893.0,0.01880043]
[1731803427297,0.3608,90895.0,90893.0,0.00848586]
[1731803427501,0.3608,90895.0,90893.0,0.0188004]
[1731803427804,0.447776,90899.0,90893.0,0.0188004]
[1731803428102,0.44837601,90899.0,90893.0,0.0188004]
[1731803428307,0.054976,90898.0,90893.0,0.0188004]
[1731803428613,0.054976,90898.0,90893.0,0.0153622]
[1731803428912,0.054976,90898.0,90893.0,0.01880041]
[1731803429088,0.39340001,90899.0,90893.0,0.01880041]
[1731803429595,0.39340001,90899.0,90893.0,0.0187582]
[1731803429802,0.00060001,90899.0,90893.0,0.3795582]
[1731803430000,0.1,90900.0,90893.0,0.38756835]
[1731803430308,0.1,90900.0,90899.0,0.054975]
[1731803430495,0.1,90900.0,90899.0,0.0737332]
[1731803432599,0.4608,90900.0,90893.0,0.055939]
[1731803432811,0.16074697,90895.0,90894.0,0.01872055]
[1731803433010,0.16074697,90895.0,90894.0,0.00343831]
[1731803433191,0.16074697,90895.0,90884.0,6.461e-05]
[1731803433192,0.054982,90888.0,90884.0,6.461e-05]
[1731803433389,0.087783,90887.0,90885.0,0.00343842]
[1731803433592,0.05339871,90887.0,90886.0,0.00343842]
[1731803433807,0.05339871,90887.0,90884.0,6.461e-05]
[1731803434388,0.16075297,90885.0,90884.0,6.461e-05]
[1731803435092,0.41190926,90885.0,90868.0,0.00253406]
[1731803435302,0.3608,90877.0,90864.0,0.00165065]
[1731803435501,0.10576897,90871.0,90864.0,0.00165065]
[1731803435802,0.054994,90868.0,90864.0,0.00165065]
[1731803436604,0.054996,90866.0,90864.0,0.00165065]
[1731803437297,0.055003,90853.0,90850.0,0.04071565]
[1731803437607,0.10576897,90861.0,90848.0,0.10550275]
[1731803437805,0.055002,90856.0,90852.0,0.055004]
[1731803438712,0.055003,90854.0,90848.0,0.10550275]
[1731803439407,0.055003,90854.0,90848.0,0.16050875]
[1731803439913,0.3608,90859.0,90848.0,0.10550275]
[1731803440203,0.3608,90859.0,90852.0,0.055003]
[1731803440797,0.055002,90855.0,90848.0,0.10550275]
[1731803441003,0.055002,90855.0,90849.0,0.01031935]
[1731803441202,0.055002,90855.0,90850.0,0.01031935]
[1731803441400,0.055002,90855.0,90849.0,0.055005]
[1731803441401,0.055002,90855.0,90851.0,0.01031935]
[1731803441709,0.055002,90855.0,90849.0,0.055005]
[1731803441900,0.055002,90855.0,90850.0,0.01031916]
[1731803442096,0.055002,90855.0,90851.0,0.01031916]
[1731803442296,0.055002,90855.0,90852.0,0.01031916]
[1731803442500,0.055002,90855.0,90849.0,0.055005]
[1731803442810,0.055002,90855.0,90850.0,0.01031911]
[1731803442999,0.055002,90855.0,90851.0,0.06532311]
[1731803443311,0.055001,90857.0,90853.0,0.055003]
[1731803443813,0.055001,90857.0,90854.0,0.055002]
[1731803444009,0.41550758,90859.0,90848.0,0.00155]
[1731803444010,0.41550758,90859.0,90857.0,0.055]
[1731803444309,0.41494757,90859.0,90857.0,0.055]
[1731803445094,0.05414757,90859.0,90857.0,0.055]
[1731803445410,0.10576897,90861.0,90849.0,0.055005]
[1731803445616,0.10576897,90861.0,90858.0,0.055]
[1731803446109,0.054997,90864.0,90859.0,0.054999]
[1731803446321,0.11030701,90864.0,90848.0,0.00155]
[1731803446503,0.054997,90864.0,90850.0,0.055005]
[1731803446704,0.054997,90863.0,90858.0,0.055]
[1731803447019,0.054997,90863.0,90851.0,0.11006548]
[1731803447307,0.054997,90863.0,90852.0,0.01031844]
[1731803447519,0.054997,90863.0,90853.0,0.01031844]
[1731803447707,0.054997,90863.0,90849.0,0.08444]
[1731803447708,0.054997,90863.0,90854.0,0.01031844]
[1731803447907,0.054997,90863.0,90861.0,0.054998]
[1731803448701,0.054997,90863.0,90849.0,0.08444]
[1731803448702,0.41614725,90867.0,90849.0,0.08444]
[1731803448900,0.3608,90859.0,90851.0,0.055004]
[1731803449101,0.10576897,90860.0,90852.0,0.01031894]
[1731803449316,0.055002,90855.0,90854.0,0.055002]
[1731803450414,0.055004,90852.0,90848.0,0.056556]
[1731803450609,0.055004,90852.0,90850.0,0.055005]
[1731803451900,0.055008,90845.0,90844.0,0.055008]
[1731803452101,0.16077697,90845.0,90838.0,0.4174628]
[1731803452306,0.05501,90842.0,90839.0,0.01032]
[1731803452522,0.055011,90841.0,90840.0,0.01032]
[1731803452810,0.055011,90841.0,90838.0,0.3634508]
[1731803452811,0.055012,90839.0,90838.0,0.3624508]
[1731803453609,0.055012,90839.0,90838.0,0.0016508]
[1731803455004,0.055009,90844.0,90838.0,0.0016508]
[1731803455312,0.15979404,90845.0,90840.0,0.055011]
[1731803455313,0.05501,90842.0,90840.0,0.055011]
[1731803457521,0.05501,90842.0,90840.0,0.041741]
[1731803458918,0.39334,90851.0,90841.0,0.11008245]
[1731803458919,0.055007,90848.0,90841.0,0.11008245]
[1731803459216,0.055007,90848.0,90839.0,0.055012]
[1731803459423,0.055007,90848.0,90846.0,0.055007]
[1731803461110,0.0319,90851.0,90838.0,0.0016508]
[1731803461111,0.10576897,90849.0,90838.0,0.0016508]
[1731803461423,0.055011,90840.0,90839.0,0.01032023]
[1731803462006,0.055011,90840.0,90838.0,0.0016508]
[1731803462211,0.055012,90839.0,90838.0,0.0016508]
[1731803462410,0.055012,90839.0,90838.0,0.0119719]
[1731803462610,0.055012,90839.0,90838.0,0.0016508]
[1731803464411,0.055018,90829.0,90828.0,0.0051]
[1731803464710,0.055018,90829.0,90828.0,0.06533966]
[1731803464914,0.055018,90829.0,90828.0,0.055018]
[1731803465307,0.055018,90829.0,90828.0,0.06533989]
[1731803465915,0.055018,90829.0,90828.0,0.01032189]
[1731803466118,0.085118,90829.0,90828.0,0.01032189]
[1731803466318,0.05502,90825.0,90824.0,0.36221]
[1731803466518,0.05502,90825.0,90824.0,0.4275532]
[1731803467019,0.115619,90829.0,90828.0,0.055018]
[1731803467213,0.115619,90829.0,90828.0,0.0103222]
[1731803467729,0.115619,90829.0,90824.0,0.36221]
[1731803467730,0.05502,90825.0,90824.0,0.36221]
[1731803468024,0.05502,90825.0,90824.0,0.37253255]
[1731803468412,0.41582,90825.0,90824.0,0.01173255]
[1731803468612,0.5798555,90825.0,90824.0,0.00141]